fUSD/lending_fUSD_20260601
["ID","MTS","AMOUNT","RATE_DAILY","PERIOD"]
[423665014,1780291400000,290.28,0.00030082,120]
[423665015,1780291418000,1979.0,9.23e-05,5]
[423665016,1780291422000,407.35446709,0.0001,3]
[423665017,1780291485000,179.87080365,0.0001,3]
[423665018,1780291740000,2000.0,0.00030134,120]
[423665024,1780291754000,-4042.237626,7.697e-05,2]
[423665023,1780291754000,-152.0,7.686e-05,2]
[423665021,1780291754000,-418.87,7.598e-05,2]
[423665022,1780291754000,-500.0,7.611e-05,2]
[423665019,1780291754000,-284.46,7.201e-05,2]
[423665020,1780291754000,-200.0,7.36e-05,2]
[423665040,1780291832000,-300.0,8.216e-05,2]
[423665042,1780291832000,-150.99,8.217e-05,2]
[423665041,1780291832000,-150.0,8.216e-05,2]
[423665045,1780291832000,-8661.00243846,8.217e-05,2]
[423665046,1780291832000,-999.99,8.217e-05,2]
[423665043,1780291832000,-563.38827261,8.217e-05,2]
[423665039,1780291832000,-1200.0,8.216e-05,2]
[423665044,1780291832000,-775.59928893,8.217e-05,2]
[423665038,1780291832000,-164.63,8.2e-05,2]
[423665058,1780291832000,-254.91421155,8.372e-05,2]
[423665037,1780291832000,-285.816657,8.178e-05,2]
[423665036,1780291832000,-162.14,8.178e-05,2]
[423665032,1780291832000,-164.63,7.79e-05,2]
[423665034,1780291832000,-164.63,7.927e-05,2]
[423665030,1780291832000,-818.98837799,7.697e-05,2]
[423665033,1780291832000,-1000.0,7.896e-05,2]
[423665031,1780291832000,-257.21130094,7.697e-05,2]
[423665029,1780291832000,-723.91269507,7.697e-05,2]
[423665048,1780291832000,-9999.99,8.217e-05,2]
[423665035,1780291832000,-164.63,8.064e-05,2]
[423665060,1780291832000,-164.63,8.474e-05,2]
[423665075,1780291832000,-511.41048101,8.795e-05,2]
[423665050,1780291832000,-353.0,8.218e-05,2]
[423665080,1780291832000,-275.0,8.877e-05,2]
[423665071,1780291832000,-500.0,8.63e-05,2]
[423665067,1780291832000,-170.2,8.548e-05,2]
[423665078,1780291832000,-2500.0,8.795e-05,2]
[423665069,1780291832000,-166.1,8.607e-05,2]
[423665059,1780291832000,-500.0,8.467e-05,2]
[423665065,1780291832000,-170.2,8.548e-05,2]
[423665073,1780291832000,-35085.40741899,8.795e-05,2]
[423665061,1780291832000,-500.0,8.548e-05,2]
[423665072,1780291832000,-500.0,8.74e-05,2]
[423665070,1780291832000,-164.63,8.61e-05,2]
[423665062,1780291832000,-170.2,8.548e-05,2]
[423665056,1780291832000,-164.63,8.337e-05,2]
[423665053,1780291832000,-2000.0,8.219e-05,2]
[423665052,1780291832000,-2546.52,8.219e-05,2]
[423665049,1780291832000,-9999.99,8.217e-05,2]
[423665054,1780291832000,-166.1,8.332e-05,2]
[423665051,1780291832000,-215.11,8.219e-05,2]
[423665063,1780291832000,-170.2,8.548e-05,2]
[423665047,1780291832000,-299.99,8.217e-05,2]
[423665099,1780291833000,-500.0,8.894e-05,2]
[423665098,1780291833000,-500.0,8.894e-05,2]
[423665097,1780291833000,-392.24132245,8.894e-05,2]
[423665105,1780291833000,-153.71296967,8.894e-05,2]
[423665100,1780291833000,-500.0,8.894e-05,2]
[423665104,1780291833000,-219.58995668,8.894e-05,2]
[423665101,1780291833000,-500.0,8.894e-05,2]
[423665103,1780291833000,-158.8655197,8.894e-05,2]
[423665108,1780291833000,-558.30988682,8.894e-05,2]
[423665112,1780291833000,-500.0,8.894e-05,2]
[423665093,1780291833000,-500.0,8.894e-05,2]
[423665102,1780291833000,-202.40670846,8.894e-05,2]
[423665096,1780291833000,-500.0,8.894e-05,2]
[423665090,1780291833000,-500.0,8.894e-05,2]
[423665094,1780291833000,-500.0,8.894e-05,2]
[423665084,1780291833000,-151.0,8.892e-05,2]
[423665088,1780291833000,-500.0,8.894e-05,2]
[423665087,1780291833000,-500.0,8.894e-05,2]
[423665082,1780291833000,-166.1,8.882e-05,2]
[423665086,1780291833000,-500.0,8.894e-05,2]
[423665085,1780291833000,-151.0,8.892e-05,2]
[423665083,1780291833000,-151.0,8.892e-05,2]
[423665089,1780291833000,-226.95074243,8.894e-05,2]
[423665092,1780291833000,-630.72369237,8.894e-05,2]
[423665091,1780291833000,-617.42460567,8.894e-05,2]
[423665109,1780291833000,-500.0,8.894e-05,2]
[423665095,1780291833000,-500.0,8.894e-05,2]
[423665116,1780291833000,-558.30988682,8.894e-05,2]
[423665135,1780291833000,-2277.63330726,8.895e-05,2]
[423665110,1780291833000,-500.0,8.894e-05,2]
[423665138,1780291833000,-500.0,8.895e-05,2]
[423665111,1780291833000,-558.30988682,8.894e-05,2]
[423665139,1780291833000,-287.56887907,8.895e-05,2]
[423665137,1780291833000,-78978.86454931,8.895e-05,2]
[423665134,1780291833000,-970.44892758,8.895e-05,2]
[423665133,1780291833000,-348.66418483,8.895e-05,2]
[423665132,1780291833000,-17699.55565191,8.895e-05,2]
[423665136,1780291833000,-914.31806116,8.895e-05,2]
[423665130,1780291833000,-185.265706,8.895e-05,2]
[423665131,1780291833000,-176.002421,8.895e-05,2]
[423665123,1780291833000,-500.0,8.894e-05,2]
[423665127,1780291833000,-36056.98450796,8.894e-05,2]
[423665126,1780291833000,-10234.34045528,8.894e-05,2]
[423665129,1780291833000,-195.016533,8.895e-05,2]
[423665124,1780291833000,-500.0,8.894e-05,2]
[423665114,1780291833000,-500.0,8.894e-05,2]
[423665128,1780291833000,-1237.919,8.894e-05,2]
[423665113,1780291833000,-558.30988682,8.894e-05,2]
[423665106,1780291833000,-500.0,8.894e-05,2]
[423665115,1780291833000,-558.30988682,8.894e-05,2]
[423665107,1780291833000,-558.30988682,8.894e-05,2]
[423665117,1780291833000,-500.0,8.894e-05,2]
[423665118,1780291833000,-500.0,8.894e-05,2]
[423665120,1780291833000,-500.0,8.894e-05,2]
[423665125,1780291833000,-404.95779627,8.894e-05,2]
[423665122,1780291833000,-500.0,8.894e-05,2]
[423665121,1780291833000,-558.30988682,8.894e-05,2]
[423665119,1780291833000,-558.30988682,8.894e-05,2]
[423665179,1780291838000,-500.0,8.995e-05,2]
[423665170,1780291838000,-500.0,8.995e-05,2]
[423665169,1780291838000,-500.0,8.995e-05,2]
[423665181,1780291838000,-500.0,8.995e-05,2]
[423665183,1780291838000,-500.0,8.995e-05,2]
[423665171,1780291838000,-500.0,8.995e-05,2]
[423665173,1780291838000,-500.0,8.995e-05,2]
[423665196,1780291838000,-500.0,8.995e-05,2]
[423665174,1780291838000,-500.0,8.995e-05,2]
[423665187,1780291838000,-500.0,8.995e-05,2]
[423665188,1780291838000,-500.0,8.995e-05,2]
[423665185,1780291838000,-500.0,8.995e-05,2]
[423665189,1780291838000,-500.0,8.995e-05,2]
[423665198,1780291838000,-500.0,8.995e-05,2]
[423665168,1780291838000,-5016.0203843,8.995e-05,2]
[423665172,1780291838000,-500.0,8.995e-05,2]
[423665166,1780291838000,-19906.7317952,8.995e-05,2]
[423665155,1780291838000,-1387852.2325209,8.895e-05,2]
[423665177,1780291838000,-500.0,8.995e-05,2]
[423665202,1780291838000,-500.0,8.995e-05,2]
[423665150,1780291838000,-677.3385405,8.895e-05,2]
[423665153,1780291838000,-522.74575163,8.895e-05,2]
[423665152,1780291838000,-1730.70376017,8.895e-05,2]
[423665151,1780291838000,-1849.61704734,8.895e-05,2]
[423665154,1780291838000,-5390.30881834,8.895e-05,2]
[423665165,1780291838000,-7447.19661605,8.994e-05,2]
[423665156,1780291838000,-2473698.6429,8.895e-05,2]
[423665159,1780291838000,-10000.0,8.99e-05,2]
[423665158,1780291838000,-6455.41454804,8.895e-05,2]
[423665161,1780291838000,-151.0,8.992e-05,2]
[423665164,1780291838000,-4893.36899486,8.994e-05,2]
[423665162,1780291838000,-151.0,8.992e-05,2]
[423665157,1780291838000,-246.73443203,8.895e-05,2]
[423665160,1780291838000,-33240.6068,8.99e-05,2]
[423665167,1780291838000,-1050353.3005196,8.995e-05,2]
[423665191,1780291838000,-500.0,8.995e-05,2]
[423665163,1780291838000,-151.0,8.992e-05,2]
[423665200,1780291838000,-500.0,8.995e-05,2]
[423665246,1780291838000,-151.0,9.188e-05,2]
[423665234,1780291838000,-14741.62818237,9.04e-05,2]
[423665238,1780291838000,-150.0,9.089e-05,2]
[423665251,1780291838000,-2000.0,9.247e-05,2]
[423665253,1780291838000,-1008.75183792,9.368e-05,2]
[423665240,1780291838000,-166.1,9.157e-05,2]
[423665252,1780291838000,-366.70461487,9.33e-05,2]
[423665254,1780291838000,-166.1,9.432e-05,2]
[423665258,1780291838000,-166.66,9.516e-05,2]
[423665257,1780291838000,-162.78,9.496e-05,2]
[423665259,1780291838000,-167.84,9.589e-05,2]
[423665261,1780291838000,-151.0,9.589e-05,2]
[423665255,1780291838000,-500.0,9.442e-05,2]
[423665260,1780291838000,-151.0,9.589e-05,2]
[423665193,1780291838000,-500.0,8.995e-05,2]
[423665250,1780291838000,-166.66,9.221e-05,2]
[423665248,1780291838000,-567.58758151,9.201e-05,2]
[423665256,1780291838000,-502.2,9.46e-05,2]
[423665244,1780291838000,-500.0,9.168e-05,2]
[423665236,1780291838000,-151.0,9.087e-05,2]
[423665206,1780291838000,-500.0,8.995e-05,2]
[423665204,1780291838000,-500.0,8.995e-05,2]
[423665216,1780291838000,-500.0,8.995e-05,2]
[423665210,1780291838000,-500.0,8.995e-05,2]
[423665214,1780291838000,-500.0,8.995e-05,2]
[423665208,1780291838000,-500.0,8.995e-05,2]
[423665218,1780291838000,-500.0,8.995e-05,2]
[423665212,1780291838000,-500.0,8.995e-05,2]
[423665224,1780291838000,-151.0,8.995e-05,2]
[423665226,1780291838000,-151.0,8.995e-05,2]
[423665230,1780291838000,-420.0,9.038e-05,2]
[423665222,1780291838000,-151.0,8.995e-05,2]
[423665228,1780291838000,-1680.0,9.038e-05,2]
[423665232,1780291838000,-255.0,9.038e-05,2]
[423665220,1780291838000,-151.0,8.995e-05,2]
[423665242,1780291838000,-150.55,9.167e-05,2]
[423665306,1780291839000,-340.0,0.0001,2]
[423665301,1780291839000,-2000.0,0.0001,2]
[423665299,1780291839000,-349.37564326,0.0001,2]
[423665319,1780291839000,-350.0,0.00010335,2]
[423665300,1780291839000,-2000.0,0.0001,2]
[423665303,1780291839000,-2000.0,0.0001,2]
[423665298,1780291839000,-2835.64666987,0.0001,2]
[423665302,1780291839000,-2000.0,0.0001,2]
[423665297,1780291839000,-44857.03006005,0.0001,2]
[423665296,1780291839000,-247.4835026,0.0001,2]
[423665294,1780291839000,-1168.14006063,0.0001,2]
[423665305,1780291839000,-340.0,0.0001,2]
[423665304,1780291839000,-2000.0,0.0001,2]
[423665309,1780291839000,-3481.78206043,0.0001,2]
[423665315,1780291839000,-2000.0,0.00010274,2]
[423665310,1780291839000,-350.0,0.00010007,2]
[423665317,1780291839000,-381.54738275,0.00010307,2]
[423665311,1780291839000,-4000.0,0.00010027,2]
[423665307,1780291839000,-340.33902497,0.0001,2]
[423665316,1780291839000,-4000.0,0.00010278,2]
[423665318,1780291839000,-1109.912618,0.00010327,2]
[423665312,1780291839000,-2000.0,0.000101,2]
[423665313,1780291839000,-166.66,0.00010105,2]
[423665314,1780291839000,-500.0,0.00010264,2]
[423665330,1780291839000,-1546.0,0.00010417,2]
[423665321,1780291839000,-166.66,0.000104,2]
[423665320,1780291839000,-417.736987,0.00010378,2]
[423665295,1780291839000,-163.58,0.0001,2]
[423665308,1780291839000,-3481.78206043,0.0001,2]
[423665291,1780291839000,-372.49238787,0.0001,2]
[423665278,1780291839000,-112788.3198868,9.91e-05,2]
[423665286,1780291839000,-2351.0,9.941e-05,2]
[423665265,1780291839000,-27463.61,9.67e-05,2]
[423665263,1780291839000,-350.0,9.643e-05,2]
[423665262,1780291839000,-151.0,9.589e-05,2]
[423665264,1780291839000,-151.0,9.667e-05,2]
[423665266,1780291839000,-21398.84,9.67e-05,2]
[423665268,1780291839000,-166.1,9.707e-05,2]
[423665267,1780291839000,-9999.99,9.67e-05,2]
[423665279,1780291839000,-151.0,9.91e-05,2]
[423665270,1780291839000,-205.0,9.8e-05,2]
[423665280,1780291839000,-151.0,9.91e-05,2]
[423665269,1780291839000,-500.0,9.716e-05,2]
[423665273,1780291839000,-244.02,9.879e-05,2]
[423665271,1780291839000,-166.66,9.81e-05,2]
[423665293,1780291839000,-372.49238787,0.0001,2]
[423665274,1780291839000,-1950.87,9.879e-05,2]
[423665276,1780291839000,-11954.46,9.879e-05,2]
[423665277,1780291839000,-165.0,9.88e-05,2]
[423665275,1780291839000,-1230.64,9.879e-05,2]
[423665282,1780291839000,-151.0,9.91e-05,2]
[423665281,1780291839000,-151.0,9.91e-05,2]
[423665283,1780291839000,-151.0,9.91e-05,2]
[423665284,1780291839000,-151.0,9.91e-05,2]
[423665285,1780291839000,-192.665403,9.91e-05,2]
[423665287,1780291839000,-587.0,9.941e-05,2]
[423665289,1780291839000,-350.0,9.954e-05,2]
[423665290,1780291839000,-500.0,9.99e-05,2]
[423665292,1780291839000,-372.49238787,0.0001,2]
[423665288,1780291839000,-433.0,9.941e-05,2]
[423665272,1780291839000,-654.33,9.879e-05,2]
[423665322,1780291839000,-1546.0,0.00010417,2]
[423665346,1780291839000,-153.0,0.00010417,2]
[423665323,1780291839000,-1546.0,0.00010417,2]
[423665369,1780291839000,-500.0,0.00010958,2]
[423665362,1780291839000,-14127.4407626,0.000109,2]
[423665364,1780291839000,-3292.0,0.00010935,2]
[423665360,1780291839000,-350.0,0.00010886,2]
[423665363,1780291839000,-14127.4407626,0.000109,2]
[423665361,1780291839000,-14127.44076262,0.000109,2]
[423665365,1780291839000,-823.0,0.00010935,2]
[423665366,1780291839000,-736.0,0.00010935,2]
[423665367,1780291839000,-350.0,0.00010939,2]
[423665368,1780291839000,-350.0,0.00010944,2]
[423665371,1780291839000,-500.0,0.00010958,4]
[423665381,1780291839000,-200.0,0.00010959,2]
[423665374,1780291839000,-500.0,0.00010958,7]
[423665359,1780291839000,-350.0,0.00010854,2]
[423665372,1780291839000,-500.0,0.00010958,5]
[423665378,1780291839000,-500.0,0.00010958,11]
[423665373,1780291839000,-500.0,0.00010958,6]
[423665370,1780291839000,-500.0,0.00010958,3]
[423665379,1780291839000,-523.13674882,0.00010958,12]
[423665376,1780291839000,-500.0,0.00010958,9]
[423665380,1780291839000,-200.0,0.00010959,2]
[423665377,1780291839000,-500.0,0.00010958,10]
[423665382,1780291839000,-200.0,0.00010959,2]
[423665385,1780291839000,-150.0,0.00010959,2]
[423665383,1780291839000,-200.0,0.00010959,2]
[423665384,1780291839000,-167.84,0.00010959,2]
[423665324,1780291839000,-1546.0,0.00010417,2]
[423665386,1780291839000,-150.0,0.00010959,2]
[423665375,1780291839000,-500.0,0.00010958,8]
[423665358,1780291839000,-500.0,0.00010812,2]
[423665387,1780291839000,-4548.42,0.00010959,2]
[423665352,1780291839000,-502.2,0.00010511,2]
[423665354,1780291839000,-407.35446709,0.00010529,2]
[423665326,1780291839000,-1546.0,0.00010417,2]
[423665327,1780291839000,-1546.0,0.00010417,2]
[423665329,1780291839000,-1546.0,0.00010417,2]
[423665328,1780291839000,-1546.0,0.00010417,2]
[423665331,1780291839000,-1546.0,0.00010417,2]
[423665333,1780291839000,-1546.0,0.00010417,2]
[423665335,1780291839000,-1546.0,0.00010417,2]
[423665334,1780291839000,-1546.0,0.00010417,2]
[423665332,1780291839000,-1546.0,0.00010417,2]
[423665336,1780291839000,-163.0,0.00010417,2]
[423665337,1780291839000,-151.0,0.00010417,2]
[423665340,1780291839000,-151.0,0.00010417,2]
[423665342,1780291839000,-151.0,0.00010417,2]
[423665325,1780291839000,-1546.0,0.00010417,2]
[423665343,1780291839000,-151.0,0.00010417,2]
[423665341,1780291839000,-151.0,0.00010417,2]
[423665349,1780291839000,-153.0,0.00010417,2]
[423665350,1780291839000,-350.0,0.00010431,2]
[423665351,1780291839000,-151.0,0.00010472,2]
[423665355,1780291839000,-500.0,0.00010538,2]
[423665348,1780291839000,-153.0,0.00010417,2]
[423665353,1780291839000,-4000.0,0.00010529,2]
[423665347,1780291839000,-153.0,0.00010417,2]
[423665345,1780291839000,-153.0,0.00010417,2]
[423665356,1780291839000,-350.0,0.00010601,2]
[423665344,1780291839000,-153.0,0.00010417,2]
[423665339,1780291839000,-151.0,0.00010417,2]
[423665338,1780291839000,-151.0,0.00010417,2]
[423665357,1780291839000,-4000.0,0.00010779,2]
[423665423,1780291840000,-76774.50454619,0.00011099,2]
[423665427,1780291840000,-76774.50454619,0.00011099,2]
[423665426,1780291840000,-76774.50454619,0.00011099,2]
[423665429,1780291840000,-76838.96693624,0.00011099,2]
[423665422,1780291840000,-76774.50454619,0.00011099,2]
[423665425,1780291840000,-76774.50454619,0.00011099,2]
[423665421,1780291840000,-76774.50454619,0.00011099,2]
[423665431,1780291840000,-76838.96693616,0.00011099,2]
[423665419,1780291840000,-76774.5045462,0.00011099,2]
[423665424,1780291840000,-76774.50454619,0.00011099,2]
[423665428,1780291840000,-76774.50454619,0.00011099,2]
[423665430,1780291840000,-76838.96693616,0.00011099,2]
[423665438,1780291840000,-76838.96693616,0.00011099,2]
[423665442,1780291840000,-151.0,0.00011099,2]
[423665433,1780291840000,-76838.96693616,0.00011099,2]
[423665434,1780291840000,-76838.96693616,0.00011099,2]
[423665435,1780291840000,-76838.96693616,0.00011099,2]
[423665441,1780291840000,-151.0,0.00011099,2]
[423665437,1780291840000,-76838.96693616,0.00011099,2]
[423665440,1780291840000,-151.0,0.00011099,2]
[423665436,1780291840000,-76838.96693616,0.00011099,2]
[423665439,1780291840000,-151.0,0.00011099,2]
[423665444,1780291840000,-151.0,0.00011099,2]
[423665454,1780291840000,-1976.0,0.00011231,5]
[423665443,1780291840000,-151.0,0.00011099,2]
[423665420,1780291840000,-76774.50454619,0.00011099,2]
[423665432,1780291840000,-76838.96693616,0.00011099,2]
[423665411,1780291840000,-153.0,0.00011083,2]
[423665399,1780291840000,-1546.0,0.00011083,2]
[423665415,1780291840000,-3481.78206043,0.00011089,2]
[423665393,1780291840000,-151.0,0.00010959,2]
[423665389,1780291840000,-151.0,0.00010959,2]
[423665390,1780291840000,-151.0,0.00010959,2]
[423665392,1780291840000,-151.0,0.00010959,2]
[423665391,1780291840000,-151.0,0.00010959,2]
[423665388,1780291840000,-151.0,0.00010959,2]
[423665395,1780291840000,-150.0,0.00010989,2]
[423665394,1780291840000,-350.0,0.00010961,2]
[423665445,1780291840000,-151.0,0.00011099,2]
[423665404,1780291840000,-1546.0,0.00011083,2]
[423665402,1780291840000,-1546.0,0.00011083,2]
[423665396,1780291840000,-315.0,0.00010989,2]
[423665400,1780291840000,-1546.0,0.00011083,2]
[423665398,1780291840000,-1546.0,0.00011083,2]
[423665403,1780291840000,-1546.0,0.00011083,2]
[423665397,1780291840000,-4000.0,0.0001103,2]
[423665401,1780291840000,-1546.0,0.00011083,2]
[423665406,1780291840000,-280.61209394,0.00011083,2]
[423665412,1780291840000,-153.0,0.00011083,2]
[423665416,1780291840000,-151.0,0.00011096,2]
[423665418,1780291840000,-781.56714637,0.00011098,2]
[423665407,1780291840000,-151.0,0.00011083,2]
[423665410,1780291840000,-151.0,0.00011083,2]
[423665414,1780291840000,-500.0,0.00011085,2]
[423665409,1780291840000,-151.0,0.00011083,2]
[423665408,1780291840000,-151.0,0.00011083,2]
[423665417,1780291840000,-300.0,0.00011098,2]
[423665413,1780291840000,-153.0,0.00011083,2]
[423665446,1780291840000,-151.0,0.00011099,2]
[423665405,1780291840000,-1546.0,0.00011083,2]
[423665447,1780291840000,-151.0,0.00011099,2]
[423665482,1780291840000,-2000.0,0.00012,2]
[423665494,1780291840000,-2000.0,0.00012,2]
[423665492,1780291840000,-2000.0,0.00012,2]
[423665493,1780291840000,-2000.0,0.00012,2]
[423665483,1780291840000,-2000.0,0.00012,2]
[423665486,1780291840000,-2000.0,0.00012,2]
[423665485,1780291840000,-2000.0,0.00012,2]
[423665484,1780291840000,-2000.0,0.00012,2]
[423665488,1780291840000,-2000.0,0.00012,2]
[423665490,1780291840000,-2000.0,0.00012,2]
[423665491,1780291840000,-2000.0,0.00012,2]
[423665487,1780291840000,-2000.0,0.00012,2]
[423665489,1780291840000,-2000.0,0.00012,2]
[423665495,1780291840000,-2000.0,0.00012,2]
[423665505,1780291840000,-1152.0,0.00012029,2]
[423665508,1780291840000,-500.0,0.00012181,2]
[423665503,1780291840000,-1252.0,0.00012028,2]
[423665507,1780291840000,-40532.18,0.00012055,2]
[423665506,1780291840000,-300.0,0.00012054,2]
[423665496,1780291840000,-2000.0,0.00012,2]
[423665497,1780291840000,-1131.22,0.00012,2]
[423665504,1780291840000,-4609.0,0.00012029,2]
[423665499,1780291840000,-2000.0,0.00012,2]
[423665502,1780291840000,-2000.0,0.00012,2]
[423665455,1780291840000,-2000.0,0.00011301,2]
[423665498,1780291840000,-2000.0,0.00012,2]
[423665509,1780291840000,-475.00550055,0.00012277,2]
[423665481,1780291840000,-300.0,0.00011999,2]
[423665473,1780291840000,-165.22995503,0.00011667,2]
[423665501,1780291840000,-2000.0,0.00012,2]
[423665477,1780291840000,-246.73443201,0.00011848,2]
[423665472,1780291840000,-151.0,0.00011667,2]
[423665448,1780291840000,-151.0,0.00011099,2]
[423665449,1780291840000,-151.0,0.00011099,2]
[423665453,1780291840000,-2835.64666987,0.00011197,2]
[423665451,1780291840000,-151.0,0.00011099,2]
[423665450,1780291840000,-151.0,0.00011099,2]
[423665459,1780291840000,-150.55,0.00011459,2]
[423665457,1780291840000,-14127.4407626,0.00011411,2]
[423665458,1780291840000,-179.55995227,0.00011422,2]
[423665460,1780291840000,-2546.52,0.00011507,2]
[423665456,1780291840000,-500.0,0.00011359,2]
[423665461,1780291840000,-151.0,0.00011507,2]
[423665463,1780291840000,-8618.50640152,0.000116,2]
[423665466,1780291840000,-1546.0,0.00011667,2]
[423665452,1780291840000,-179.064744,0.00011099,2]
[423665467,1780291840000,-1546.0,0.00011667,2]
[423665464,1780291840000,-500.0,0.00011633,2]
[423665480,1780291840000,-300.0,0.00011999,2]
[423665478,1780291840000,-500.0,0.00011907,2]
[423665476,1780291840000,-1029.95193931,0.00011781,2]
[423665470,1780291840000,-1653.51905338,0.00011667,2]
[423665474,1780291840000,-153.0,0.00011667,2]
[423665475,1780291840000,-155.84466403,0.00011667,2]
[423665465,1780291840000,-1546.0,0.00011667,2]
[423665468,1780291840000,-1546.0,0.00011667,2]
[423665479,1780291840000,-300.0,0.00011999,2]
[423665469,1780291840000,-1546.0,0.00011667,2]
[423665471,1780291840000,-151.0,0.00011667,2]
[423665462,1780291840000,-502.2,0.00011562,2]
[423665547,1780291841000,-150.0,0.0001245,2]
[423665551,1780291841000,-150.0,0.00012456,2]
[423665539,1780291841000,-150.0,0.00012409,2]
[423665540,1780291841000,-150.0,0.00012409,2]
[423665542,1780291841000,-229.00187327,0.00012412,2]
[423665545,1780291841000,-229.00187327,0.00012439,2]
[423665543,1780291841000,-229.00187327,0.00012426,2]
[423665541,1780291841000,-150.0,0.00012409,2]
[423665544,1780291841000,-150.0,0.0001243,2]
[423665549,1780291841000,-229.00187327,0.00012453,2]
[423665553,1780291841000,-150.0,0.00012481,2]
[423665546,1780291841000,-150.0,0.00012443,2]
[423665558,1780291841000,-229.00187327,0.00012495,2]
[423665550,1780291841000,-500.0,0.00012455,2]
[423665560,1780291841000,-150.0,0.00012506,2]
[423665554,1780291841000,-229.00187327,0.00012481,2]
[423665559,1780291841000,-150.0,0.000125,2]
[423665555,1780291841000,-150.0,0.0001249,2]
[423665557,1780291841000,-150.0,0.0001249,2]
[423665556,1780291841000,-150.0,0.0001249,2]
[423665562,1780291841000,-229.00187327,0.00012522,2]
[423665563,1780291841000,-150.0,0.00012524,2]
[423665567,1780291841000,-196.38552942,0.00012536,7]
[423665548,1780291841000,-150.0,0.0001245,2]
[423665552,1780291841000,-229.00187327,0.00012467,2]
[423665536,1780291841000,-229.00187327,0.00012398,2]
[423665521,1780291841000,-150.0,0.00012329,2]
[423665532,1780291841000,-229.00187327,0.0001237,2]
[423665511,1780291841000,-150.0,0.00012329,2]
[423665510,1780291841000,-14127.4407626,0.00012284,2]
[423665512,1780291841000,-150.0,0.00012329,2]
[423665523,1780291841000,-167.84,0.00012329,2]
[423665525,1780291841000,-290.28,0.00012329,2]
[423665516,1780291841000,-150.0,0.00012329,2]
[423665514,1780291841000,-150.0,0.00012329,2]
[423665561,1780291841000,-229.00187327,0.00012509,2]
[423665513,1780291841000,-150.0,0.00012329,2]
[423665517,1780291841000,-150.0,0.00012329,2]
[423665524,1780291841000,-215.11,0.00012329,2]
[423665537,1780291841000,-150.0,0.00012405,2]
[423665519,1780291841000,-150.0,0.00012329,2]
[423665522,1780291841000,-229.00187327,0.00012329,2]
[423665520,1780291841000,-150.0,0.00012329,2]
[423665527,1780291841000,-229.00187327,0.00012343,2]
[423665526,1780291841000,-2000.0,0.00012329,2]
[423665528,1780291841000,-150.0,0.00012354,2]
[423665529,1780291841000,-229.00187327,0.00012356,2]
[423665534,1780291841000,-229.00187327,0.00012384,2]
[423665533,1780291841000,-150.0,0.0001238,2]
[423665531,1780291841000,-150.0,0.00012369,2]
[423665535,1780291841000,-150.0,0.00012386,2]
[423665530,1780291841000,-150.0,0.00012369,2]
[423665518,1780291841000,-150.0,0.00012329,2]
[423665564,1780291841000,-150.0,0.0001253,2]
[423665616,1780291841000,-229.00187327,0.00012772,2]
[423665572,1780291841000,-229.00187327,0.00012564,2]
[423665597,1780291841000,-229.00187327,0.00012675,2]
[423665606,1780291841000,-150.0,0.00012728,2]
[423665605,1780291841000,-150.0,0.0001272,2]
[423665599,1780291841000,-229.00187327,0.00012689,2]
[423665602,1780291841000,-229.00187327,0.00012702,2]
[423665598,1780291841000,-150.0,0.00012684,2]
[423665604,1780291841000,-229.00187327,0.00012716,2]
[423665607,1780291841000,-500.0,0.00012729,2]
[423665601,1780291841000,-150.0,0.00012691,2]
[423665600,1780291841000,-150.0,0.00012691,2]
[423665603,1780291841000,-150.0,0.00012709,2]